[Event "Titled Tuesday Blitz July 18 Early 2023"]
[White "AndresDelgado77"]
[Black "benny_aizenberg"]
[WhiteElo "2317"]
[BlackElo "2662"]
[Result "1-0"]
[Round "2"]
[TimeControl "180+2"]
[Date "2023.07.18"]
[WhiteClock "0:00:06"]
[BlackClock "0:00:03"]
[Board "94"]

1. e4 {[%clk 0:03:00]}  c5 {[%clk 0:02:57]} 2. Nf3 {[%clk 0:03:00]}  d6 {[%clk 0:02:55]} 3. d4 {[%clk 0:03:00]}  cxd4 {[%clk 0:02:56]} 4. Qxd4 {[%clk 0:03:00]}  Nc6 {[%clk 0:02:54]} 5. Bb5 {[%clk 0:02:59]}  Bd7 {[%clk 0:02:54]} 6. Qd3 {[%clk 0:02:59]}  Nf6 {[%clk 0:02:51]} 7. Nc3 {[%clk 0:02:59]}  Rc8 {[%clk 0:02:45]} 8. Bg5 {[%clk 0:02:49]}  Nb4 {[%clk 0:02:32]} 9. Bxd7+ {[%clk 0:02:45]}  Qxd7 {[%clk 0:02:29]} 10. Qe2 {[%clk 0:02:15]}  e6 {[%clk 0:02:21]} 11. Rd1 {[%clk 0:02:06]}  Qc6 {[%clk 0:01:18]} 12. a3 {[%clk 0:02:00]}  Na6 {[%clk 0:01:17]} 13. O-O {[%clk 0:01:53]}  Be7 {[%clk 0:01:14]} 14. e5 {[%clk 0:01:48]}  dxe5 {[%clk 0:01:08]} 15. Nxe5 {[%clk 0:01:46]}  Qb6 {[%clk 0:01:07]} 16. Be3 {[%clk 0:01:07]}  Qxb2 {[%clk 0:01:02]} 17. Bd4 {[%clk 0:01:01]}  O-O {[%clk 0:00:28]} 18. Nc4 {[%clk 0:00:37]}  Rxc4 {[%clk 0:00:23]} 19. Qxc4 {[%clk 0:00:38]}  Qxc2 {[%clk 0:00:22]} 20. Rc1 {[%clk 0:00:27]}  Qf5 {[%clk 0:00:21]} 21. Qb5 {[%clk 0:00:24]}  Bxa3 {[%clk 0:00:20]} 22. Qxf5 {[%clk 0:00:22]}  exf5 {[%clk 0:00:21]} 23. Rb1 {[%clk 0:00:18]}  Nc5 {[%clk 0:00:08]} 24. Nb5 {[%clk 0:00:15]}  Ne6 {[%clk 0:00:05]} 25. Bxf6 {[%clk 0:00:14]}  Bc5 {[%clk 0:00:05]} 26. Bd4 {[%clk 0:00:13]}  Nxd4 {[%clk 0:00:04]} 27. Nxd4 {[%clk 0:00:11]}  Bxd4 {[%clk 0:00:05]} 28. Rxb7 {[%clk 0:00:12]}  g6 {[%clk 0:00:05]} 29. Rd1 {[%clk 0:00:12]}  Bb6 {[%clk 0:00:05]} 30. Rdd7 {[%clk 0:00:11]}  Kg7 {[%clk 0:00:04]} 31. g3 {[%clk 0:00:11]}  h5 {[%clk 0:00:04]} 32. h4 {[%clk 0:00:12]}  Kf6 {[%clk 0:00:04]} 33. Kg2 {[%clk 0:00:12]}  Ke6 {[%clk 0:00:04]} 34. Kf3 {[%clk 0:00:09]}  Bc5 {[%clk 0:00:04]} 35. Rdc7 {[%clk 0:00:08]}  Bb6 {[%clk 0:00:04]} 36. Rc6+ {[%clk 0:00:08]}  Kd5 {[%clk 0:00:04]} 37. Rc2 {[%clk 0:00:08]}  Kd6 {[%clk 0:00:03]} 38. Rd2+ {[%clk 0:00:07]}  Ke6 {[%clk 0:00:03]} 39. Rdd7 {[%clk 0:00:07]}  Kf6 {[%clk 0:00:03]} 40. Rd6+ {[%clk 0:00:06]}  Ke5 {[%clk 0:00:03]} 41. Rdd7 {[%clk 0:00:06]}  Ke6 {[%clk 0:00:03]} 42. Ke2 {[%clk 0:00:06]}  f4 {[%clk 0:00:03]} 43. Re7+ {[%clk 0:00:05]}  Kf6 {[%clk 0:00:03]} 44. gxf4 {[%clk 0:00:04]}  Bc5 {[%clk 0:00:03]} 45. Rec7 {[%clk 0:00:04]}  Bb6 {[%clk 0:00:04]} 46. Rc6+ {[%clk 0:00:04]}  Kf5 {[%clk 0:00:04]} 47. Kf3 {[%clk 0:00:04]}  f6 {[%clk 0:00:03]} 48. Rd7 {[%clk 0:00:02]}  g5 {[%clk 0:00:01]} 49. Rd5+ {[%clk 0:00:03]}  Kg6 {[%clk 0:00:01]} 50. hxg5 {[%clk 0:00:03]}  Kg7 {[%clk 0:00:01]} 51. Rxf6 {[%clk 0:00:03]}  Rxf6 {[%clk 0:00:02]} 52. gxf6+ {[%clk 0:00:03]}  Kxf6 {[%clk 0:00:03]} 53. Rxh5 {[%clk 0:00:03]}  Bd4 {[%clk 0:00:02]} 54. Rb5 {[%clk 0:00:04]}  a6 {[%clk 0:00:02]} 55. Rb7 {[%clk 0:00:04]}  a5 {[%clk 0:00:02]} 56. Rb5 {[%clk 0:00:04]}  Bc3 {[%clk 0:00:02]} 57. Ke4 {[%clk 0:00:05]}  Be1 {[%clk 0:00:02]} 58. Kd3 {[%clk 0:00:05]}  Bb4 {[%clk 0:00:02]} 59. Ke4 {[%clk 0:00:04]}  Be1 {[%clk 0:00:02]} 60. Rb6+ {[%clk 0:00:04]}  Kf7 {[%clk 0:00:02]} 61. f5 {[%clk 0:00:04]}  Bc3 {[%clk 0:00:02]} 62. Kf4 {[%clk 0:00:04]}  Ke7 {[%clk 0:00:02]} 63. Kg5 {[%clk 0:00:04]}  Kf7 {[%clk 0:00:02]} 64. Rb7+ {[%clk 0:00:05]}  Kf8 {[%clk 0:00:02]} 65. f4 {[%clk 0:00:05]}  Ke8 {[%clk 0:00:02]} 66. f6 {[%clk 0:00:05]}  a4 {[%clk 0:00:02]} 67. Ra7 {[%clk 0:00:05]}  a3 {[%clk 0:00:02]} 68. Rxa3 {[%clk 0:00:05]}  Bb2 {[%clk 0:00:01]} 69. Ra7 {[%clk 0:00:05]}  Kf8 {[%clk 0:00:01]} 70. Rb7 {[%clk 0:00:06]}  Bc3 {[%clk 0:00:01]} 71. Kg6 {[%clk 0:00:06]}  Ke8 {[%clk 0:00:01]} 72. f7+ {[%clk 0:00:05]}  Kf8 {[%clk 0:00:02]} 73. Rb8+ {[%clk 0:00:06]}  Ke7 {[%clk 0:00:03]} 74. f8=Q+ {[%clk 0:00:06]}  Kd7 {[%clk 0:00:03]} 75. Qd8+ {[%clk 0:00:05]}  Ke6 {[%clk 0:00:03]} 76. Qc8+ {[%clk 0:00:05]}  Kd6 {[%clk 0:00:02]} 77. Qxc3 {[%clk 0:00:05]}  Kd5 {[%clk 0:00:02]} 78. Rb2 {[%clk 0:00:06]}  Ke6 {[%clk 0:00:02]} 79. Rd2 {[%clk 0:00:05]}  Ke7 {[%clk 0:00:02]} 80. Qe3+ {[%clk 0:00:06]}  Kf8 {[%clk 0:00:03]} 81. Rd8# {[%clk 0:00:06]} 1-0


[Site "https://www.chess.com"]

[Event "Titled Tuesday Blitz July 18 Early 2023"]
[White "Aaditya Dhingra"]
[Black "Martin, Lewis"]
[WhiteFideId "25678191"]
[BlackFideId "410551"]
[WhiteElo "2662"]
[BlackElo "2308"]
[Result "1-0"]
[Round "2"]
[TimeControl "180+2"]
[Date "2023.07.18"]
[WhiteClock "0:00:26"]
[BlackClock "0:00:11"]
[Board "95"]

1. d4 {[%clk 0:03:00]}  d5 {[%clk 0:02:59]} 2. Bf4 {[%clk 0:02:58]}  Nf6 {[%clk 0:02:58]} 3. e3 {[%clk 0:02:57]}  e6 {[%clk 0:02:58]} 4. Nd2 {[%clk 0:02:55]}  c5 {[%clk 0:02:56]} 5. c3 {[%clk 0:02:54]}  Nc6 {[%clk 0:02:56]} 6. Ngf3 {[%clk 0:02:39]}  Bd6 {[%clk 0:02:49]} 7. Bg3 {[%clk 0:02:39]}  O-O {[%clk 0:02:48]} 8. Bb5 {[%clk 0:02:36]}  Ne7 {[%clk 0:02:41]} 9. Bd3 {[%clk 0:02:33]}  c4 {[%clk 0:02:35]} 10. Bc2 {[%clk 0:02:31]}  b5 {[%clk 0:02:35]} 11. O-O {[%clk 0:02:30]}  a5 {[%clk 0:02:34]} 12. e4 {[%clk 0:02:30]}  Bxg3 {[%clk 0:02:29]} 13. hxg3 {[%clk 0:02:29]}  dxe4 {[%clk 0:02:29]} 14. Ng5 {[%clk 0:02:22]}  h6 {[%clk 0:02:26]} 15. Ngxe4 {[%clk 0:02:21]}  Nxe4 {[%clk 0:02:12]} 16. Nxe4 {[%clk 0:02:22]}  Nd5 {[%clk 0:02:11]} 17. Qe2 {[%clk 0:02:17]}  Ba6 {[%clk 0:02:05]} 18. Nc5 {[%clk 0:02:14]}  Qd6 {[%clk 0:01:53]} 19. Rad1 {[%clk 0:02:06]}  Rfe8 {[%clk 0:01:46]} 20. Qe4 {[%clk 0:02:01]}  Nf6 {[%clk 0:01:44]} 21. Qe5 {[%clk 0:01:53]}  Red8 {[%clk 0:01:32]} 22. Rfe1 {[%clk 0:01:43]}  b4 {[%clk 0:01:22]} 23. Qxd6 {[%clk 0:01:22]}  Rxd6 {[%clk 0:01:22]} 24. Be4 {[%clk 0:01:23]}  Rb8 {[%clk 0:01:11]} 25. Bf3 {[%clk 0:01:21]}  bxc3 {[%clk 0:01:06]} 26. bxc3 {[%clk 0:01:20]}  Rb2 {[%clk 0:01:06]} 27. Rb1 {[%clk 0:01:04]}  Rxa2 {[%clk 0:01:02]} 28. Rb8+ {[%clk 0:01:03]}  Kh7 {[%clk 0:01:01]} 29. Reb1 {[%clk 0:01:03]}  Ra3 {[%clk 0:00:53]} 30. Ra8 {[%clk 0:01:02]}  Rxc3 {[%clk 0:00:52]} 31. Rxa6 {[%clk 0:00:58]}  Rxd4 {[%clk 0:00:52]} 32. Rxa5 {[%clk 0:00:57]}  Rd2 {[%clk 0:00:41]} 33. Ne4 {[%clk 0:00:52]}  Nxe4 {[%clk 0:00:41]} 34. Bxe4+ {[%clk 0:00:53]}  f5 {[%clk 0:00:39]} 35. Bf3 {[%clk 0:00:53]}  Rcc2 {[%clk 0:00:38]} 36. g4 {[%clk 0:00:48]}  Rxf2 {[%clk 0:00:33]} 37. gxf5 {[%clk 0:00:47]}  exf5 {[%clk 0:00:26]} 38. Rxf5 {[%clk 0:00:47]}  Rcd2 {[%clk 0:00:22]} 39. Be4 {[%clk 0:00:44]}  Rxf5 {[%clk 0:00:17]} 40. Bxf5+ {[%clk 0:00:44]}  g6 {[%clk 0:00:18]} 41. Rb7+ {[%clk 0:00:42]}  Kg8 {[%clk 0:00:16]} 42. Bxg6 {[%clk 0:00:42]}  c3 {[%clk 0:00:16]} 43. Rc7 {[%clk 0:00:42]}  c2 {[%clk 0:00:14]} 44. Bxc2 {[%clk 0:00:41]}  Kf8 {[%clk 0:00:12]} 45. Kh2 {[%clk 0:00:40]}  Ke8 {[%clk 0:00:12]} 46. Bf5 {[%clk 0:00:40]}  Kd8 {[%clk 0:00:12]} 47. Rc6 {[%clk 0:00:39]}  h5 {[%clk 0:00:10]} 48. Rh6 {[%clk 0:00:38]}  Ke7 {[%clk 0:00:11]} 49. Rxh5 {[%clk 0:00:38]}  Kf6 {[%clk 0:00:12]} 50. Bh3 {[%clk 0:00:39]}  Kg6 {[%clk 0:00:12]} 51. Rf5 {[%clk 0:00:38]}  Rd3 {[%clk 0:00:12]} 52. Rf3 {[%clk 0:00:38]}  Rd4 {[%clk 0:00:12]} 53. g4 {[%clk 0:00:38]}  Kg5 {[%clk 0:00:11]} 54. Kg3 {[%clk 0:00:38]}  Rd1 {[%clk 0:00:11]} 55. Rf5+ {[%clk 0:00:38]}  Kh6 {[%clk 0:00:12]} 56. Bg2 {[%clk 0:00:38]}  Rd3+ {[%clk 0:00:12]} 57. Bf3 {[%clk 0:00:38]}  Ra3 {[%clk 0:00:13]} 58. Kh4 {[%clk 0:00:38]}  Kg7 {[%clk 0:00:13]} 59. Kg5 {[%clk 0:00:38]}  Ra7 {[%clk 0:00:12]} 60. Bd5 {[%clk 0:00:38]}  Ra6 {[%clk 0:00:12]} 61. Rf7+ {[%clk 0:00:37]}  Kh8 {[%clk 0:00:12]} 62. Kh5 {[%clk 0:00:36]}  Rb6 {[%clk 0:00:12]} 63. g5 {[%clk 0:00:36]}  Rd6 {[%clk 0:00:13]} 64. Rf5 {[%clk 0:00:33]}  Rh6+ {[%clk 0:00:11]} 65. gxh6 {[%clk 0:00:27]}  Kh7 {[%clk 0:00:11]} 66. Rf7+ {[%clk 0:00:26]}  Kh8 {[%clk 0:00:11]} 67. Rf8+ {[%clk 0:00:26]}  Kh7 {[%clk 0:00:11]} 68. Be4# {[%clk 0:00:26]} 1-0


[Site "https://www.chess.com"]

[Event "Titled Tuesday Blitz July 18 Early 2023"]
[White "Zaim, Marian"]
[Black "Shuvalova, Polina"]
[WhiteFideId "1204114"]
[BlackFideId "24171760"]
[WhiteElo "2274"]
[BlackElo "2658"]
[Result "1-0"]
[Round "2"]
[TimeControl "180+2"]
[Date "2023.07.18"]
[WhiteClock "0:00:37"]
[BlackClock "0:00:02"]
[Board "97"]

1. d4 {[%clk 0:03:00]}  Nf6 {[%clk 0:02:56]} 2. c4 {[%clk 0:03:00]}  b6 {[%clk 0:02:54]} 3. g3 {[%clk 0:02:56]}  Bb7 {[%clk 0:02:54]} 4. Nf3 {[%clk 0:02:56]}  e6 {[%clk 0:02:53]} 5. Bg2 {[%clk 0:02:56]}  Be7 {[%clk 0:02:48]} 6. O-O {[%clk 0:02:56]}  O-O {[%clk 0:02:48]} 7. Nc3 {[%clk 0:02:53]}  Ne4 {[%clk 0:02:48]} 8. Qc2 {[%clk 0:02:50]}  Nxc3 {[%clk 0:02:41]} 9. Qxc3 {[%clk 0:02:48]}  d6 {[%clk 0:02:41]} 10. b3 {[%clk 0:02:46]}  Nd7 {[%clk 0:02:40]} 11. Bb2 {[%clk 0:02:46]}  f5 {[%clk 0:02:35]} 12. Nd2 {[%clk 0:02:31]}  Bxg2 {[%clk 0:02:33]} 13. Kxg2 {[%clk 0:02:31]}  Nf6 {[%clk 0:02:31]} 14. f3 {[%clk 0:02:31]}  g5 {[%clk 0:02:22]} 15. e4 {[%clk 0:02:30]}  Qe8 {[%clk 0:02:17]} 16. Rae1 {[%clk 0:02:26]}  Qf7 {[%clk 0:02:14]} 17. Re2 {[%clk 0:02:17]}  Rae8 {[%clk 0:02:12]} 18. exf5 {[%clk 0:02:16]}  exf5 {[%clk 0:02:11]} 19. Rfe1 {[%clk 0:02:16]}  Bd8 {[%clk 0:02:10]} 20. d5 {[%clk 0:02:13]}  h5 {[%clk 0:01:58]} 21. Nf1 {[%clk 0:02:08]}  Rxe2+ {[%clk 0:01:56]} 22. Rxe2 {[%clk 0:02:08]}  Re8 {[%clk 0:01:57]} 23. Rxe8+ {[%clk 0:02:01]}  Qxe8 {[%clk 0:01:57]} 24. Qe3 {[%clk 0:01:55]}  Qxe3 {[%clk 0:01:34]} 25. Nxe3 {[%clk 0:01:54]}  f4 {[%clk 0:01:34]} 26. gxf4 {[%clk 0:01:54]}  gxf4 {[%clk 0:01:34]} 27. Nf5 {[%clk 0:01:52]}  Nd7 {[%clk 0:01:31]} 28. Bc1 {[%clk 0:01:48]}  Bf6 {[%clk 0:01:23]} 29. Bxf4 {[%clk 0:01:46]}  Kf7 {[%clk 0:01:23]} 30. Be3 {[%clk 0:01:36]}  Kg6 {[%clk 0:01:21]} 31. Nd4 {[%clk 0:01:35]}  Bxd4 {[%clk 0:01:11]} 32. Bxd4 {[%clk 0:01:35]}  Kf5 {[%clk 0:01:11]} 33. Kf2 {[%clk 0:01:31]}  a5 {[%clk 0:01:07]} 34. Ke3 {[%clk 0:01:29]}  Nf8 {[%clk 0:01:07]} 35. Bg7 {[%clk 0:01:03]}  Ng6 {[%clk 0:01:06]} 36. Bh6 {[%clk 0:01:03]}  Ne5 {[%clk 0:01:04]} 37. h4 {[%clk 0:00:57]}  Nf7 {[%clk 0:01:00]} 38. Bf8 {[%clk 0:00:53]}  Kf6 {[%clk 0:00:57]} 39. f4 {[%clk 0:00:52]}  Nh8 {[%clk 0:00:54]} 40. Bh6 {[%clk 0:00:48]}  Kf5 {[%clk 0:00:50]} 41. Bg5 {[%clk 0:00:47]}  Ng6 {[%clk 0:00:36]} 42. Kf3 {[%clk 0:00:47]}  Nf8 {[%clk 0:00:19]} 43. Bd8 {[%clk 0:00:47]}  Ng6 {[%clk 0:00:17]} 44. Bxc7 {[%clk 0:00:45]}  Nxh4+ {[%clk 0:00:17]} 45. Kg3 {[%clk 0:00:45]}  Ng6 {[%clk 0:00:18]} 46. Bxd6 {[%clk 0:00:45]}  h4+ {[%clk 0:00:18]} 47. Kf3 {[%clk 0:00:45]}  Nh8 {[%clk 0:00:11]} 48. Bc7 {[%clk 0:00:43]}  Ng6 {[%clk 0:00:09]} 49. d6 {[%clk 0:00:44]}  Ke6 {[%clk 0:00:07]} 50. Bxb6 {[%clk 0:00:42]}  Kxd6 {[%clk 0:00:06]} 51. Bxa5 {[%clk 0:00:42]}  Ne7 {[%clk 0:00:05]} 52. Kg4 {[%clk 0:00:42]}  Nc6 {[%clk 0:00:05]} 53. Bc3 {[%clk 0:00:41]}  Ke6 {[%clk 0:00:05]} 54. Kxh4 {[%clk 0:00:41]}  Kf5 {[%clk 0:00:05]} 55. Kg3 {[%clk 0:00:41]}  Nd8 {[%clk 0:00:06]} 56. Kf3 {[%clk 0:00:41]}  Ne6 {[%clk 0:00:07]} 57. Be5 {[%clk 0:00:41]}  Nc5 {[%clk 0:00:07]} 58. b4 {[%clk 0:00:40]}  Nd3 {[%clk 0:00:08]} 59. b5 {[%clk 0:00:40]}  Ke6 {[%clk 0:00:06]} 60. Ke3 {[%clk 0:00:39]}  Nc5 {[%clk 0:00:05]} 61. Kd4 {[%clk 0:00:38]}  Na4 {[%clk 0:00:04]} 62. c5 {[%clk 0:00:38]}  Kd7 {[%clk 0:00:04]} 63. Kc4 {[%clk 0:00:37]}  Ke6 {[%clk 0:00:02]} 64. Kb4 {[%clk 0:00:37]} 1-0


[Site "https://www.chess.com"]

[Event "Titled Tuesday Blitz July 18 Early 2023"]
[White "Haug, Havard"]
[Black "Luxama, Jacques Muller"]
[WhiteFideId "1547887"]
[BlackFideId "11900113"]
[WhiteElo "2657"]
[BlackElo "2247"]
[Result "1-0"]
[Round "2"]
[TimeControl "180+2"]
[Date "2023.07.18"]
[WhiteClock "0:00:36"]
[BlackClock "0:00:00"]
[Board "98"]

1. e4 {[%clk 0:03:00]}  e6 {[%clk 0:02:59]} 2. d4 {[%clk 0:02:56]}  d5 {[%clk 0:02:59]} 3. e5 {[%clk 0:02:57]}  c5 {[%clk 0:02:59]} 4. c3 {[%clk 0:02:57]}  Ne7 {[%clk 0:02:59]} 5. Na3 {[%clk 0:02:55]}  Nec6 {[%clk 0:02:57]} 6. Nc2 {[%clk 0:02:54]}  b6 {[%clk 0:02:52]} 7. Nf3 {[%clk 0:02:53]}  a5 {[%clk 0:02:50]} 8. b3 {[%clk 0:02:47]}  cxd4 {[%clk 0:02:44]} 9. Ncxd4 {[%clk 0:02:41]}  Ba6 {[%clk 0:02:39]} 10. Bxa6 {[%clk 0:02:40]}  Rxa6 {[%clk 0:02:39]} 11. Qd3 {[%clk 0:02:38]}  Ra7 {[%clk 0:02:35]} 12. O-O {[%clk 0:02:37]}  Be7 {[%clk 0:02:34]} 13. Bf4 {[%clk 0:02:20]}  O-O {[%clk 0:02:33]} 14. Rfd1 {[%clk 0:02:19]}  Nxd4 {[%clk 0:02:27]} 15. Nxd4 {[%clk 0:02:18]}  Rc7 {[%clk 0:02:27]} 16. Rac1 {[%clk 0:02:14]}  Qd7 {[%clk 0:02:25]} 17. Qe2 {[%clk 0:02:11]}  Rfc8 {[%clk 0:02:20]} 18. Nb5 {[%clk 0:01:58]}  Rc5 {[%clk 0:02:15]} 19. c4 {[%clk 0:01:56]}  Na6 {[%clk 0:01:26]} 20. h3 {[%clk 0:01:41]}  Nb4 {[%clk 0:01:14]} 21. a3 {[%clk 0:01:32]}  Na6 {[%clk 0:01:09]} 22. Be3 {[%clk 0:01:23]}  R5c6 {[%clk 0:01:09]} 23. Nd4 {[%clk 0:01:19]}  Bxa3 {[%clk 0:00:37]} 24. Ra1 {[%clk 0:00:59]}  Bc5 {[%clk 0:00:33]} 25. Nxc6 {[%clk 0:00:58]}  Bxe3 {[%clk 0:00:32]} 26. cxd5 {[%clk 0:00:54]}  Bxf2+ {[%clk 0:00:29]} 27. Qxf2 {[%clk 0:00:46]}  exd5 {[%clk 0:00:29]} 28. Nd4 {[%clk 0:00:46]}  Nc5 {[%clk 0:00:07]} 29. Rac1 {[%clk 0:00:45]}  Re8 {[%clk 0:00:06]} 30. Qf5 {[%clk 0:00:42]}  Qxf5 {[%clk 0:00:04]} 31. Nxf5 {[%clk 0:00:42]}  Rxe5 {[%clk 0:00:05]} 32. Rxd5 {[%clk 0:00:36]}  Rxd5 {[%clk 0:00:01]} 33. Ne7+ {[%clk 0:00:36]}  Kf8 {[%clk 0:00:02]} 34. Nxd5 {[%clk 0:00:37]}  b5 {[%clk 0:00:00]} 35. Rxc5 {[%clk 0:00:36]} 1-0


[Site "https://www.chess.com"]

[Event "Titled Tuesday Blitz July 18 Early 2023"]
[White "Da Silva Junior, Sediney Mari"]
[Black "Spata, German"]
[WhiteFideId "2132079"]
[BlackFideId "113026"]
[WhiteElo "2180"]
[BlackElo "2651"]
[Result "0-1"]
[Round "2"]
[TimeControl "180+2"]
[Date "2023.07.18"]
[WhiteClock "0:01:17"]
[BlackClock "0:01:18"]
[Board "99"]

1. e4 {[%clk 0:03:00]}  e6 {[%clk 0:02:59]} 2. Nf3 {[%clk 0:03:00]}  d5 {[%clk 0:02:59]} 3. e5 {[%clk 0:03:01]}  a5 {[%clk 0:02:57]} 4. d4 {[%clk 0:03:01]}  c5 {[%clk 0:02:58]} 5. c3 {[%clk 0:03:01]}  Nc6 {[%clk 0:02:58]} 6. Bd3 {[%clk 0:03:01]}  Qb6 {[%clk 0:02:55]} 7. dxc5 {[%clk 0:03:01]}  Bxc5 {[%clk 0:02:55]} 8. O-O {[%clk 0:03:01]}  Nge7 {[%clk 0:02:51]} 9. a4 {[%clk 0:02:57]}  Ng6 {[%clk 0:02:50]} 10. Qe2 {[%clk 0:02:55]}  Bd7 {[%clk 0:02:42]} 11. Na3 {[%clk 0:02:55]}  O-O {[%clk 0:02:40]} 12. h4 {[%clk 0:02:55]}  Qc7 {[%clk 0:02:37]} 13. Nb5 {[%clk 0:02:54]}  Qb8 {[%clk 0:02:37]} 14. Bxg6 {[%clk 0:02:53]}  fxg6 {[%clk 0:02:35]} 15. Be3 {[%clk 0:02:49]}  b6 {[%clk 0:02:28]} 16. Bd4 {[%clk 0:02:41]}  Ne7 {[%clk 0:02:23]} 17. Rad1 {[%clk 0:02:14]}  Bxb5 {[%clk 0:02:23]} 18. Qxb5 {[%clk 0:02:10]}  Qe8 {[%clk 0:02:22]} 19. Ng5 {[%clk 0:01:58]}  Nf5 {[%clk 0:02:10]} 20. Qxe8 {[%clk 0:01:57]}  Rfxe8 {[%clk 0:02:03]} 21. g3 {[%clk 0:01:56]}  Bxd4 {[%clk 0:01:56]} 22. cxd4 {[%clk 0:01:56]}  Rac8 {[%clk 0:01:56]} 23. Rc1 {[%clk 0:01:47]}  Nxd4 {[%clk 0:01:55]} 24. Rxc8 {[%clk 0:01:44]}  Rxc8 {[%clk 0:01:55]} 25. Rd1 {[%clk 0:01:45]}  h6 {[%clk 0:01:46]} 26. Rxd4 {[%clk 0:01:41]}  hxg5 {[%clk 0:01:46]} 27. b4 {[%clk 0:01:29]}  Rc4 {[%clk 0:01:28]} 28. Rxc4 {[%clk 0:01:26]}  dxc4 {[%clk 0:01:28]} 29. Kf1 {[%clk 0:01:19]}  axb4 {[%clk 0:01:28]} 30. hxg5 {[%clk 0:01:19]}  b3 {[%clk 0:01:18]} 31. Ke1 {[%clk 0:01:17]}  b2 {[%clk 0:01:18]} 0-1


[Site "https://www.chess.com"]

[Event "Titled Tuesday Blitz July 18 Early 2023"]
[White "Shimanov, Aleksandr"]
[Black "Goughfather"]
[WhiteFideId "4198603"]
[WhiteElo "3005"]
[BlackElo "2018"]
[Result "1-0"]
[Round "2"]
[TimeControl "180+2"]
[Date "2023.07.18"]
[WhiteClock "0:00:23"]
[BlackClock "0:00:00"]
[Board "103"]

1. e4 {[%clk 0:03:00]}  c6 {[%clk 0:03:00]} 2. d3 {[%clk 0:02:55]}  d5 {[%clk 0:03:00]} 3. Bf4 {[%clk 0:02:55]}  dxe4 {[%clk 0:02:58]} 4. dxe4 {[%clk 0:02:55]}  Qxd1+ {[%clk 0:02:59]} 5. Kxd1 {[%clk 0:02:56]}  f6 {[%clk 0:02:59]} 6. Nd2 {[%clk 0:02:56]}  e5 {[%clk 0:02:59]} 7. Be3 {[%clk 0:02:56]}  Be6 {[%clk 0:02:57]} 8. a4 {[%clk 0:02:54]}  Nd7 {[%clk 0:02:51]} 9. Bc4 {[%clk 0:02:51]}  Kf7 {[%clk 0:02:50]} 10. Ngf3 {[%clk 0:02:36]}  Bc5 {[%clk 0:02:48]} 11. Ke2 {[%clk 0:02:34]}  Ne7 {[%clk 0:02:42]} 12. a5 {[%clk 0:02:32]}  Nc8 {[%clk 0:02:28]} 13. c3 {[%clk 0:02:08]}  Nd6 {[%clk 0:02:24]} 14. Bxe6+ {[%clk 0:02:02]}  Kxe6 {[%clk 0:02:25]} 15. b4 {[%clk 0:02:02]}  Bxe3 {[%clk 0:02:16]} 16. Kxe3 {[%clk 0:02:03]}  a6 {[%clk 0:02:04]} 17. Rhd1 {[%clk 0:01:53]}  Rhd8 {[%clk 0:02:04]} 18. Ne1 {[%clk 0:01:48]}  c5 {[%clk 0:01:42]} 19. Nd3 {[%clk 0:01:43]}  c4 {[%clk 0:01:38]} 20. Nb2 {[%clk 0:01:38]}  Rac8 {[%clk 0:01:36]} 21. f3 {[%clk 0:01:36]}  Rc6 {[%clk 0:01:23]} 22. Ke2 {[%clk 0:01:34]}  Rdc8 {[%clk 0:01:11]} 23. Nf1 {[%clk 0:01:32]}  g6 {[%clk 0:00:50]} 24. Rd2 {[%clk 0:01:04]}  f5 {[%clk 0:00:46]} 25. exf5+ {[%clk 0:01:03]}  gxf5 {[%clk 0:00:43]} 26. Rad1 {[%clk 0:01:02]}  f4 {[%clk 0:00:23]} 27. Kf2 {[%clk 0:00:55]}  Nf6 {[%clk 0:00:18]} 28. Na4 {[%clk 0:00:50]}  Nb5 {[%clk 0:00:09]} 29. g3 {[%clk 0:00:45]}  Rd6 {[%clk 0:00:03]} 30. Rxd6+ {[%clk 0:00:42]}  Nxd6 {[%clk 0:00:03]} 31. gxf4 {[%clk 0:00:42]}  exf4 {[%clk 0:00:03]} 32. Nc5+ {[%clk 0:00:42]}  Ke7 {[%clk 0:00:02]} 33. Nd2 {[%clk 0:00:40]}  Rg8 {[%clk 0:00:02]} 34. Re1+ {[%clk 0:00:40]}  Kf7 {[%clk 0:00:02]} 35. Re6 {[%clk 0:00:36]}  Nf5 {[%clk 0:00:02]} 36. Nxc4 {[%clk 0:00:36]}  Ne3 {[%clk 0:00:03]} 37. Nxe3 {[%clk 0:00:26]}  fxe3+ {[%clk 0:00:04]} 38. Rxe3 {[%clk 0:00:24]}  Nd5 {[%clk 0:00:04]} 39. Rd3 {[%clk 0:00:23]}  Nf4 {[%clk 0:00:05]} 40. Rd4 {[%clk 0:00:23]}  Rg2+ {[%clk 0:00:04]} 41. Kf1 {[%clk 0:00:23]}  Rc2 {[%clk 0:00:00]} 42. Rxf4+ {[%clk 0:00:23]} 1-0


[Site "https://www.chess.com"]

[Event "Titled Tuesday Blitz July 18 Early 2023"]
[White "Zemlyanskii, Ivan"]
[Black "Keleberda, Tymur"]
[WhiteFideId "24249971"]
[BlackFideId "14174294"]
[WhiteElo "2871"]
[BlackElo "2516"]
[Result "1-0"]
[Round "2"]
[TimeControl "180+2"]
[Date "2023.07.18"]
[WhiteClock "0:00:11"]
[BlackClock "0:00:02"]
[Board "104"]

1. d4 {[%clk 0:03:00]}  Nf6 {[%clk 0:02:59]} 2. c4 {[%clk 0:03:00]}  e6 {[%clk 0:02:57]} 3. Bf4 {[%clk 0:03:00]}  d5 {[%clk 0:02:54]} 4. Nc3 {[%clk 0:02:54]}  Bd6 {[%clk 0:02:23]} 5. Bg3 {[%clk 0:02:54]}  O-O {[%clk 0:02:20]} 6. e3 {[%clk 0:02:54]}  b6 {[%clk 0:02:18]} 7. cxd5 {[%clk 0:02:52]}  Nxd5 {[%clk 0:02:16]} 8. Bd3 {[%clk 0:02:48]}  Bb7 {[%clk 0:02:15]} 9. Nf3 {[%clk 0:02:43]}  h6 {[%clk 0:02:06]} 10. O-O {[%clk 0:02:30]}  Bxg3 {[%clk 0:02:00]} 11. hxg3 {[%clk 0:02:31]}  Nxc3 {[%clk 0:01:54]} 12. bxc3 {[%clk 0:02:31]}  Nd7 {[%clk 0:01:54]} 13. a4 {[%clk 0:02:30]}  c5 {[%clk 0:01:45]} 14. a5 {[%clk 0:02:30]}  bxa5 {[%clk 0:01:45]} 15. Bb5 {[%clk 0:01:36]}  Nf6 {[%clk 0:01:20]} 16. Qa4 {[%clk 0:01:32]}  Nd5 {[%clk 0:01:08]} 17. Rfc1 {[%clk 0:01:28]}  cxd4 {[%clk 0:00:57]} 18. cxd4 {[%clk 0:01:29]}  Qe7 {[%clk 0:00:45]} 19. Qxa5 {[%clk 0:01:26]}  Rfc8 {[%clk 0:00:45]} 20. Ne5 {[%clk 0:01:13]}  Qb4 {[%clk 0:00:38]} 21. Rxc8+ {[%clk 0:01:05]}  Rxc8 {[%clk 0:00:24]} 22. Qxb4 {[%clk 0:01:04]}  Nxb4 {[%clk 0:00:25]} 23. Rxa7 {[%clk 0:01:05]}  Rc1+ {[%clk 0:00:22]} 24. Kh2 {[%clk 0:01:04]}  Be4 {[%clk 0:00:20]} 25. Rxf7 {[%clk 0:01:01]}  Rc2 {[%clk 0:00:19]} 26. Rf4 {[%clk 0:00:48]}  Bf5 {[%clk 0:00:14]} 27. g4 {[%clk 0:00:46]}  g5 {[%clk 0:00:13]} 28. Rf3 {[%clk 0:00:43]}  Be4 {[%clk 0:00:13]} 29. Rf7 {[%clk 0:00:38]}  Nd5 {[%clk 0:00:13]} 30. Bd7 {[%clk 0:00:35]}  Nxe3 {[%clk 0:00:12]} 31. fxe3 {[%clk 0:00:20]}  Rxg2+ {[%clk 0:00:12]} 32. Kh3 {[%clk 0:00:21]}  Re2 {[%clk 0:00:12]} 33. Bxe6 {[%clk 0:00:17]}  Rxe3+ {[%clk 0:00:12]} 34. Kh2 {[%clk 0:00:18]}  Kh8 {[%clk 0:00:12]} 35. Bf5 {[%clk 0:00:16]}  Re2+ {[%clk 0:00:11]} 36. Kg1 {[%clk 0:00:16]}  Bd5 {[%clk 0:00:11]} 37. Re7 {[%clk 0:00:14]}  Rg2+ {[%clk 0:00:09]} 38. Kf1 {[%clk 0:00:14]}  Rd2 {[%clk 0:00:09]} 39. Rd7 {[%clk 0:00:13]}  Bb3 {[%clk 0:00:05]} 40. d5 {[%clk 0:00:10]}  Rxd5 {[%clk 0:00:04]} 41. Ng6+ {[%clk 0:00:11]}  Kg8 {[%clk 0:00:02]} 42. Be6# {[%clk 0:00:11]} 1-0


[Site "https://www.chess.com"]